fUST/lending_fUST_20251118
["ID","MTS","AMOUNT","RATE_DAILY","PERIOD"]
[394306226,1763437846736,-500.65944619,0.00040673,5]
[394306228,1763437846745,-502.7392002,0.00040673,5]
[394306230,1763437846754,-300.0,0.00040673,5]
[394306232,1763437846763,-150.0,0.00040674,2]
[394306233,1763437846774,-11505.61498944,0.00040677,3]
[394306236,1763437846785,-27843.8065006,0.00040677,3]
[394306238,1763437846797,-372.9242503,0.00040677,3]
[394306338,1763437858154,217.24862447,0.00034041,2]
[394306339,1763437862513,151.19,0.0001,2]
[394306340,1763437862958,151.19,0.000108,2]
[394306341,1763437863394,151.19,0.000116,2]
[394306342,1763437863830,151.19,0.000125,2]
[394306346,1763437897052,194.41204787,0.00031447,2]
[394306347,1763437897553,194.41204787,0.00034498,56]
[394306388,1763438051333,11612.59,0.00038262,30]
[394306396,1763438247311,244.726766,0.00013699,2]
[394306405,1763438442068,3292.0,0.00032877,120]
[394306409,1763438572803,2261.50459313,0.000175,2]
[394306413,1763438586244,3000.0,0.00038254,120]
[394306420,1763438747098,-1415.49540687,0.000175,2]
[394306421,1763438747119,-255.26647548,0.00020087,2]
[394306422,1763438747140,-244.726766,0.00020187,2]
[394306423,1763438747160,-244.726766,0.00026676,2]
[394306424,1763438747179,-326.72320865,0.00028964,2]
[394306425,1763438747198,-151.368646,0.00029307,20]
[394306426,1763438747220,-150.0,0.00029865,2]
[394306427,1763438747242,-150.0,0.00031287,2]
[394306428,1763438747261,-326.72320865,0.00032112,56]
[394306429,1763438747281,-217.79,0.0003271,2]
[394306430,1763438747300,-244.726766,0.00033165,2]
[394306431,1763438747322,-223.04388549,0.00034132,2]
[394306434,1763438839117,-278.4070999,0.0002589,2]
[394306435,1763438839140,-150.0,0.0002978,2]
[394306436,1763438839163,-150.0,0.00031198,2]
[394306437,1763438839183,-189.5,0.00032616,2]
[394306438,1763438839207,-252.67,0.00034034,2]
[394306439,1763438839227,-164.0,0.00035,120]
[394306440,1763438839247,-326.72320865,0.0003526,110]
[394306441,1763438839267,-315.84,0.00035452,2]
[394306442,1763438839287,-383.0,0.00036018,3]
[394306443,1763438839305,-898.05988068,0.00036018,2]
[394306444,1763438839327,-643.607939,0.0003612,2]
[394306445,1763438839350,-379.0,0.0003687,2]
[394306446,1763438839371,-374.3670897,0.00036944,120]
[394306447,1763438839392,-400.0,0.00037587,2]
[394306448,1763438839411,-1000.0,0.00038246,2]
[394306449,1763438839522,-1016.08013625,0.00038246,2]
[394306450,1763438839543,-150.0,0.00038254,20]
[394306451,1763438839565,-3369.61850352,0.00038254,20]
[394306452,1763438839586,-442.17,0.00038288,2]
[394306453,1763438839606,-279.43068804,0.00038523,2]
[394306454,1763438839626,-503.97563958,0.00038523,2]
[394306455,1763438839647,-151.368646,0.00039058,31]
[394306456,1763438839667,-585.0,0.00039453,7]
[394306457,1763438839688,-585.0,0.00039508,120]
[394306458,1763438839709,-198.21,0.0003953,55]
[394306459,1763438839728,-244.726766,0.00039654,2]
[394306460,1763438839751,-442.49522115,0.00039706,2]
[394306461,1763438840100,-62.84477885,0.00039706,2]
[394306462,1763438840120,-226.25642429,0.00039946,2]
[394306496,1763438945090,-150.0,0.0002983,2]
[394306497,1763438945115,-147.1745585,0.00031251,2]
[394306498,1763438945144,-2.8254415,0.00031251,2]
[394306499,1763438945166,-150.0,0.00032671,2]
[394306500,1763438945188,-150.0,0.00034092,2]
[394306561,1763439031907,-159.4796592,0.00038523,2]
[394306562,1763439031918,-637.91863679,0.00038523,2]
[394306563,1763439031928,-150.0,0.00038844,2]
[394306564,1763439031937,-164.8776794,0.00039896,120]
[394306565,1763439031947,-358.74357571,0.00039946,2]
[394306566,1763439031957,-768.41661478,0.0003999,5]
[394306567,1763439031968,-140.58338522,0.0003999,5]
[394306568,1763439031979,-395.75460566,0.00039991,2]
[394306569,1763439031988,-62.58458768,0.00039991,2]
[394306570,1763439032001,-314.3320982,0.00039991,2]
[394306571,1763439032014,-400.0,0.00039995,5]
[394306572,1763439032023,-193.77655138,0.00039995,5]
[394306573,1763439032034,-206.22344862,0.00039995,5]
[394306574,1763439032044,-585.0,0.00039996,7]
[394306575,1763439032053,-27.46787582,0.00040286,5]
[394306576,1763439032064,-667.53212418,0.00040286,5]
[394306577,1763439032074,-8360.0496832,0.00040287,2]
[394306578,1763439032086,-451.83868692,0.00040511,2]
[394306579,1763439032095,-399.08027462,0.0004055,4]
[394306580,1763439032105,-591.2418602,0.0004055,4]
[394306581,1763439032114,-591.93893049,0.00040576,31]
[394306582,1763439032122,-500.0,0.00040576,31]
[394306583,1763439032132,-500.0,0.00040576,15]
[394306584,1763439032141,-500.0,0.00040576,7]
[394306585,1763439032151,-500.0,0.00040576,31]
[394306586,1763439032161,-350.14183773,0.00040576,31]
[394306587,1763439032170,-587.5454072,0.00040576,15]
[394306588,1763439032178,-500.0,0.00040576,31]
[394306589,1763439032187,-500.0,0.00040576,7]
[394306590,1763439032196,-500.0,0.00040576,31]
[394306591,1763439032207,-500.0,0.00040576,7]
[394306592,1763439032217,-401.02288681,0.00040576,31]
[394306593,1763439032226,-500.0,0.00040576,15]
[394306594,1763439032236,-444.63859527,0.00040576,7]
[394306595,1763439032247,-423.38677645,0.00040576,31]
[394306596,1763439032256,-500.0,0.00040576,7]
[394306597,1763439032266,-500.0,0.00040576,15]
[394306598,1763439032275,-500.0,0.00040576,7]
[394306599,1763439032284,-500.0,0.00040576,15]
[394306600,1763439032294,-1122.32937323,0.00040577,2]
[394306605,1763439037804,-482.24165179,0.00040577,2]
[394306606,1763439037867,-585.0,0.00040641,120]
[394306607,1763439037879,-500.0,0.00040676,3]
[394306608,1763439037890,-500.0,0.00040676,3]
[394306609,1763439037901,-500.0,0.00040676,3]
[394306610,1763439037911,-500.0,0.00040676,3]
[394306611,1763439037922,-500.0,0.00040676,3]
[394306612,1763439037932,-500.0,0.00040676,3]
[394306613,1763439037942,-500.0,0.00040676,3]
[394306614,1763439037953,-475.3757086,0.00040676,3]
[394306615,1763439037964,-24.6242914,0.00040676,3]
[394306616,1763439037975,-500.0,0.00040676,3]
[394306617,1763439037985,-500.0,0.00040676,3]
[394306619,1763439037996,-134.72948055,0.00040694,2]
[394307035,1763439044299,-438.9545699,0.000382,26]
[394307036,1763439044310,-701.6243821,0.000382,26]
[394307037,1763439044319,-1223.81,0.00040465,10]
[394307038,1763439044329,-5669.61570614,0.00040475,2]
[394307060,1763439046214,-1290.5641875,0.00040475,2]
[394307061,1763439046225,-993.74451218,0.00040475,2]
[394307062,1763439046377,-6476.12149901,0.00040475,2]
[394307145,1763439141963,3000.0,0.00038254,120]
[394307256,1763439377023,268.4939867,0.00038254,120]
[394308926,1763439505285,151.09997529,0.00038254,120]
[394311175,1763439785934,500.0,0.00038317,30]
[394311178,1763439786173,416.7989948,0.00038317,120]
[394311216,1763439791741,500.0,0.00038317,30]
[394311218,1763439791987,500.0,0.00038317,30]
[394311220,1763439792285,359.93013805,0.00038317,120]
[394311258,1763439799120,223.11197426,0.00038317,30]
[394311443,1763439827222,500.0,0.00038339,30]
[394311444,1763439827459,204.51098677,0.00038339,30]
[394311468,1763439831135,170.2383198,0.00038339,30]
[394311473,1763439833097,279.3848402,0.00038339,30]
[394311513,1763439838754,328.66393117,0.00038339,30]
[394311584,1763439849832,249.08010429,0.00038339,30]
[394311593,1763439851599,309.8163148,0.00038339,30]
[394311671,1763439863830,500.0,0.00038339,30]
[394311673,1763439864175,500.0,0.00038339,30]
[394311675,1763439864421,500.0,0.00038339,120]
[394311676,1763439864675,500.0,0.00038339,120]
[394311677,1763439864918,500.0,0.00038339,120]
[394311678,1763439865212,500.0,0.00038339,120]
[394311679,1763439865241,190.12477664,0.00038339,30]
[394311681,1763439865512,500.0,0.00038339,120]
[394311684,1763439865746,500.0,0.00038339,120]
[394311685,1763439865986,500.0,0.00038339,120]
[394311686,1763439866230,500.0,0.00038339,120]
[394311687,1763439866814,500.0,0.00038339,120]
[394311688,1763439867027,500.0,0.00038339,120]
[394311689,1763439867268,500.0,0.00038339,120]
[394311690,1763439867506,500.0,0.00038339,120]
[394311692,1763439867751,500.0,0.00038339,120]
[394311694,1763439867992,500.0,0.00038339,120]
[394311696,1763439868276,500.0,0.00038339,120]
[394311698,1763439868552,500.0,0.00038339,120]
[394311700,1763439868792,500.0,0.00038339,120]
[394311701,1763439869060,500.0,0.00038339,120]
[394311702,1763439869417,500.0,0.00038339,120]
[394311705,1763439869609,500.0,0.00038339,120]
[394311707,1763439869879,322.1406315,0.00038339,120]
[394311718,1763439871856,500.0,0.00038339,30]
[394311721,1763439872104,500.0,0.00038339,30]
[394311723,1763439872352,500.0,0.00038339,120]
[394311724,1763439872396,179.55922257,0.00038339,30]
[394311727,1763439873006,500.0,0.00038339,120]
[394311729,1763439873329,500.0,0.00038339,120]
[394311731,1763439873581,500.0,0.00038339,120]
[394311733,1763439873821,500.0,0.00038339,120]
[394311735,1763439874063,500.0,0.00038339,120]
[394311737,1763439874288,500.0,0.00038339,120]
[394311739,1763439874525,500.0,0.00038339,120]
[394311741,1763439874766,500.0,0.00038339,120]
[394311743,1763439875035,500.0,0.00038339,120]
[394311744,1763439875289,500.0,0.00038339,120]
[394311745,1763439875551,500.0,0.00038339,120]
[394311746,1763439875803,500.0,0.00038339,120]
[394311748,1763439876041,500.0,0.00038339,120]
[394311749,1763439876294,500.0,0.00038339,120]
[394311751,1763439876549,194.6326794,0.00038339,120]
[394311798,1763439884355,552.37,0.00038339,30]
[394311800,1763439884605,552.37,0.00038339,30]
[394311806,1763439885107,552.37,0.00038339,120]
[394311813,1763439885945,552.37,0.00038339,120]
[394311814,1763439886019,552.37,0.00038339,120]
[394311815,1763439886053,552.37,0.00038339,120]
[394311819,1763439886419,552.37,0.00038339,120]
[394311820,1763439886514,552.37,0.00038339,120]
[394311822,1763439886874,552.37,0.00038339,120]
[394311824,1763439887141,552.37,0.00038339,120]
[394311826,1763439887407,552.37,0.00038339,120]
[394311828,1763439887648,552.37,0.00038339,120]
[394311830,1763439887886,552.37,0.00038339,120]
[394311833,1763439888180,552.37,0.00038339,120]
[394311835,1763439888423,552.37,0.00038339,120]
[394311839,1763439888699,552.37,0.00038339,120]
[394311843,1763439888936,552.37,0.00038339,120]
[394311845,1763439889222,552.37,0.00038339,120]
[394311850,1763439889488,552.37,0.00038339,120]
[394311853,1763439889835,552.37,0.00038339,120]
[394311855,1763439890075,552.37,0.00038339,120]
[394311857,1763439890322,552.37,0.00038339,120]
[394311860,1763439890571,552.37,0.00038339,120]
[394311863,1763439890819,552.39381062,0.00038339,120]
[394311884,1763439893908,171.36589871,0.00038339,30]
[394311892,1763439894707,352.79474606,0.00038339,30]
[394311947,1763439902415,500.0,0.00038339,30]
[394311949,1763439902653,206.63915775,0.00038339,30]
[394311969,1763439906261,305.35433336,0.00038339,30]
[394311975,1763439909790,415.76751132,0.00038339,30]
[394312001,1763439912535,151.56689215,0.00038339,30]
[394312071,1763439926858,500.0,0.00038339,30]
[394312074,1763439927125,233.68374414,0.00038339,30]
[394312104,1763439933005,500.0,0.00038339,30]
[394312107,1763439933255,500.0,0.00038339,30]
[394312110,1763439933491,255.15912699,0.00038339,30]
[394312112,1763439933521,476.82873031,0.00038339,120]
[394312122,1763439936014,167.28819272,0.00038339,30]
[394312309,1763439966664,522.1331802,0.00038339,30]
[394312360,1763439979111,555.44946207,0.00038339,30]
[394312366,1763439980970,152.01122524,0.00038339,30]
[394312377,1763439984927,500.0,0.00038339,30]
[394312379,1763439985192,500.0,0.00038339,30]
[394312381,1763439985443,332.30628558,0.00038339,120]
[394312434,1763440019066,500.0,0.00038339,30]
[394312435,1763440019295,500.0,0.00038339,30]
[394312436,1763440019532,500.0,0.00038339,120]
[394312437,1763440019760,500.0,0.00038339,120]
[394312438,1763440020083,500.0,0.00038339,120]
[394312439,1763440020330,500.0,0.00038339,120]
[394312440,1763440020571,500.0,0.00038339,120]
[394312441,1763440020841,500.0,0.00038339,120]
[394312442,1763440021154,500.0,0.00038339,120]
[394312443,1763440021341,500.0,0.00038339,120]
[394312444,1763440021586,500.0,0.00038339,120]
[394312445,1763440021819,500.0,0.00038339,120]
[394312446,1763440022058,500.0,0.00038339,120]
[394312447,1763440022312,500.0,0.00038339,120]
[394312448,1763440022556,500.0,0.00038339,120]
[394312449,1763440022806,500.0,0.00038339,120]
[394312450,1763440023153,500.0,0.00038339,120]
[394312451,1763440023327,587.45906763,0.00038339,120]
[394312455,1763440029098,-150.0,0.00025376,2]
[394312456,1763440029120,-224.22814265,0.00027276,2]
[394312457,1763440029141,-187.451224,0.00027376,2]
[394312458,1763440029169,-83.75388666,0.00027376,2]
[394312459,1763440029192,-150.0,0.00029781,2]
[394312460,1763440029213,-150.0,0.00031199,2]
[394312461,1763440029233,-154.10221765,0.00031447,2]
[394312462,1763440029254,-150.0,0.00032617,2]
[394312463,1763440029275,-154.10221765,0.00033354,56]
[394312464,1763440029296,-150.0,0.00034035,2]
[394312465,1763440029317,-150.0,0.00035453,2]
[394312466,1763440029337,-531.85940839,0.00036339,38]
[394312475,1763440039079,-15.85679261,0.00036339,38]
[394312476,1763440039101,-152.26,0.00036871,2]
[394312477,1763440039122,-164.87767939,0.00037892,120]
[394312478,1763440039143,-669.40403412,0.00037991,2]
[394312479,1763440039167,-177.64,0.0003829,2]
[394312480,1763440039188,-849.87,0.00038328,10]
[394312481,1763440039207,-708.22,0.00038328,10]
[394312482,1763440039228,-400.0,0.00038328,5]
[394312483,1763440039247,-1019.84,0.00038329,10]
[394312484,1763440039267,-1600.0,0.00038338,5]
[394312485,1763440039291,-500.0,0.00038338,7]
[394312486,1763440039311,-500.0,0.00038338,15]
[394312487,1763440039334,-128.02874658,0.00038338,15]
[394312488,1763440041115,-590.19,0.00038328,10]
[394312489,1763440041134,-371.97125342,0.00038338,15]
[394312490,1763440041153,-404.9741709,0.00038338,7]
[394312491,1763440041173,-544.78720686,0.00038338,15]
[394312492,1763440041193,-500.0,0.00038338,15]
[394312493,1763440041215,-399.44128762,0.00038338,15]
[394312528,1763440076574,579.56,0.00038339,30]
[394312529,1763440076812,579.56,0.00038339,30]
[394312530,1763440077048,579.56,0.00038339,120]
[394312531,1763440077282,579.56,0.00038339,120]
[394312532,1763440077557,579.56,0.00038339,120]
[394312534,1763440077755,579.56,0.00038339,120]
[394312536,1763440078042,579.56,0.00038339,120]
[394312538,1763440078277,579.56,0.00038339,120]
[394312540,1763440078575,579.56,0.00038339,120]
[394312541,1763440078811,579.56,0.00038339,120]
[394312543,1763440079073,579.56,0.00038339,120]
[394312545,1763440079318,579.56,0.00038339,120]
[394312547,1763440079553,579.56,0.00038339,120]
[394312548,1763440079775,579.56,0.00038339,120]
[394312549,1763440080013,579.56,0.00038339,120]
[394312550,1763440080282,579.56,0.00038339,120]
[394312551,1763440080525,579.56,0.00038339,120]
[394312552,1763440080751,579.56,0.00038339,120]
[394312553,1763440080994,579.56,0.00038339,120]
[394312554,1763440081227,579.56,0.00038339,120]
[394312555,1763440081462,579.56,0.00038339,120]
[394312556,1763440081689,579.56,0.00038339,120]
[394312558,1763440081929,579.56,0.00038339,120]
[394312559,1763440082205,579.56232075,0.00038339,120]
[394312564,1763440102138,198.9300526,0.0001,2]
[394312565,1763440107180,9851.92832322,0.00017,2]
[394312566,1763440107491,9691.94500545,0.00016,3]
[394312567,1763440107522,179531.05499455,0.00016,3]
[394312568,1763440109277,353.69157,0.00038339,120]
[394312569,1763440110356,500.0,0.00038339,30]
[394312570,1763440110678,361.40999557,0.00038339,30]
[394312571,1763440110952,498.63596401,0.00032,120]
[394312575,1763440122875,18005.16442551,0.00038339,30]
[394312595,1763440140514,500.0,0.00038339,30]
[394312596,1763440140844,500.0,0.00038339,30]
[394312597,1763440141044,425.88513975,0.00038339,30]
[394312598,1763440144856,938.81,0.00038339,30]
[394312599,1763440145171,938.81,0.00038339,30]
[394312600,1763440145404,938.81,0.00038339,120]
[394312601,1763440145676,938.81,0.00038339,120]
[394312602,1763440145916,938.81,0.00038339,120]
[394312603,1763440146082,-411.6,0.00018,2]
[394312604,1763440146134,938.81,0.00038339,120]
[394312605,1763440146361,938.81,0.00038339,120]
[394312606,1763440146654,938.81,0.00038339,120]
[394312607,1763440146885,938.81,0.00038339,120]
[394312608,1763440147110,938.81,0.00038339,120]
[394312609,1763440147335,938.81,0.00038339,120]
[394312610,1763440147564,938.81,0.00038339,120]
[394312611,1763440147810,938.81,0.00038339,120]
[394312612,1763440148065,938.81,0.00038339,120]
[394312613,1763440148305,938.81,0.00038339,120]
[394312614,1763440148572,938.81,0.00038339,120]
[394312616,1763440148827,938.81,0.00038339,120]
[394312617,1763440149066,938.81,0.00038339,120]
[394312618,1763440149307,938.81,0.00038339,120]
[394312619,1763440149549,938.81,0.00038339,120]
[394312620,1763440149802,938.81,0.00038339,120]
[394312621,1763440150054,938.81,0.00038339,120]
[394312622,1763440150285,938.81,0.00038339,120]
[394312623,1763440150564,938.92661885,0.00038339,120]
[394312624,1763440151173,-45.85298346,0.00018,2]
[394312628,1763440160125,-3360.95379571,0.00031,3]
[394312648,1763440177034,154.10221764,0.00031765,30]
[394312679,1763440192896,500.0,0.00038339,30]
[394312680,1763440193155,500.0,0.00038339,30]
[394312681,1763440193392,500.0,0.00038339,120]
[394312683,1763440193621,500.0,0.00038339,120]
[394312685,1763440193881,500.0,0.00038339,120]
[394312687,1763440194120,407.31116026,0.00038339,120]
[394312866,1763440238093,-151.13690597,0.00036073,10]
[394312867,1763440238103,-912.36858853,0.0003686,2]
[394312868,1763440238113,-400.0,0.00038237,2]
[394312869,1763440238122,-431.0,0.00038237,3]
[394312870,1763440238131,-197.7206459,0.00038237,2]
[394312871,1763440238141,-4048.28810082,0.00038238,2]
[394312872,1763440238150,-501.78056702,0.0003827,2]
[394312873,1763440238160,-18507.8054402,0.00038328,3]
[394312874,1763440238169,-491.82,0.00038329,10]
[394312875,1763440238179,-500.0,0.00038336,15]
[394312876,1763440238188,-335.366023,0.00038336,15]
[394312877,1763440238198,-500.0,0.00038336,7]
[394312878,1763440238207,-500.0,0.00038336,7]
[394312879,1763440238217,-500.0,0.00038336,7]
[394312881,1763440238226,-365.01189717,0.00038336,15]
[394312882,1763440238235,-500.0,0.00038336,7]
[394312883,1763440238244,-500.0,0.00038336,15]
[394312884,1763440238253,-500.0,0.00038336,7]
[394312885,1763440238262,-162.83877307,0.00038336,7]
[394312886,1763440238272,-445.61005247,0.00038336,7]
[394312887,1763440238284,-54.38994753,0.00038336,7]
[394312888,1763440238293,-500.0,0.00038336,15]
[394312889,1763440238302,-500.0,0.00038336,7]
[394312890,1763440238311,-500.0,0.00038336,15]
[394312891,1763440238321,-500.0,0.00038336,15]
[394312892,1763440238331,-500.0,0.00038336,15]
[394312893,1763440238340,-500.0,0.00038336,15]
[394312894,1763440238349,-500.0,0.00038336,15]
[394312895,1763440238358,-500.0,0.00038336,7]
[394312896,1763440238368,-500.0,0.00038336,15]
[394312897,1763440238377,-500.0,0.00038336,15]
[394312898,1763440238387,-500.0,0.00038336,15]
[394312899,1763440238399,-500.0,0.00038336,15]
[394312900,1763440238409,-500.0,0.00038336,15]
[394312901,1763440238418,-500.0,0.00038336,7]
[394312902,1763440238427,-500.0,0.00038336,15]
[394312903,1763440238437,-500.0,0.00038336,7]
[394312904,1763440238446,-500.0,0.00038336,15]
[394312905,1763440238455,-500.0,0.00038336,15]
[394312906,1763440238465,-500.0,0.00038336,15]
[394312907,1763440238473,-500.0,0.00038336,15]
[394312908,1763440238483,-404.60715221,0.00038336,15]
[394312909,1763440238492,-500.0,0.00038336,7]
[394312910,1763440238500,-500.0,0.00038336,15]
[394312911,1763440238509,-500.0,0.00038336,15]
[394312912,1763440238518,-500.0,0.00038336,15]
[394312913,1763440238527,-500.0,0.00038336,7]
[394312914,1763440238537,-500.0,0.00038336,15]
[394312915,1763440238546,-500.0,0.00038336,15]
[394312916,1763440238555,-500.0,0.00038336,15]
[394312917,1763440238565,-500.0,0.00038336,15]
[394312918,1763440238575,-604.47609904,0.00038336,15]
[394312919,1763440238587,-500.0,0.00038336,15]
[394312921,1763440238597,-500.0,0.00038336,15]
[394312922,1763440238606,-500.0,0.00038336,15]
[394312923,1763440238616,-500.0,0.00038336,7]
[394312924,1763440238625,-500.0,0.00038336,15]
[394312925,1763440238634,-500.0,0.00038336,15]
[394312926,1763440238644,-500.0,0.00038336,15]
[394312927,1763440238653,-230.49090351,0.00038336,15]
[394312928,1763440238662,-500.0,0.00038336,7]
[394312929,1763440238672,-352.39433816,0.00038336,15]
[394312930,1763440238682,-500.0,0.00038336,15]
[394312931,1763440238691,-379.70304078,0.00038336,15]
[394312932,1763440238700,-500.0,0.00038336,15]
[394312933,1763440238709,-500.0,0.00038336,15]
[394312934,1763440238718,-500.0,0.00038336,7]
[394312935,1763440238727,-500.0,0.00038336,15]
[394312936,1763440238736,-500.0,0.00038336,15]
[394312937,1763440238746,-500.0,0.00038336,7]
[394312938,1763440238755,-500.0,0.00038336,15]
[394312939,1763440238764,-500.0,0.00038336,15]
[394312940,1763440238773,-500.0,0.00038336,7]
[394312941,1763440238782,-500.0,0.00038336,15]
[394312942,1763440238791,-500.0,0.00038336,7]
[394312944,1763440238800,-500.0,0.00038336,15]
[394312945,1763440238809,-500.0,0.00038336,15]
[394312946,1763440238819,-650.0,0.00038336,7]
[394312947,1763440238829,-500.0,0.00038336,15]
[394312948,1763440238838,-500.0,0.00038336,7]
[394312949,1763440238847,-500.0,0.00038336,15]
[394312951,1763440238857,-500.0,0.00038336,7]
[394312952,1763440238867,-500.0,0.00038336,15]
[394312953,1763440238875,-500.0,0.00038336,15]
[394312954,1763440238885,-500.0,0.00038336,15]
[394312955,1763440238894,-500.0,0.00038336,15]
[394312956,1763440238903,-500.0,0.00038336,15]
[394312957,1763440238912,-500.0,0.00038336,15]
[394312958,1763440238922,-500.0,0.00038336,15]
[394312959,1763440238931,-500.0,0.00038336,15]
[394312960,1763440238940,-500.0,0.00038336,15]
[394312961,1763440238949,-500.0,0.00038336,15]
[394312962,1763440238958,-1200.0,0.00038337,5]
[394312963,1763440238967,-500.0,0.00038339,7]
[394312964,1763440238976,-544.14748747,0.00038339,7]
[394312965,1763440238986,-500.0,0.00038339,7]
[394312966,1763440238995,-500.0,0.00038339,7]
[394312967,1763440239005,-500.0,0.00038339,7]
[394312968,1763440239015,-375.7944197,0.00038339,7]
[394312969,1763440239025,-500.0,0.00038339,2]
[394312970,1763440239034,-500.0,0.00038339,2]
[394312973,1763440239135,-500.0,0.00038339,2]
[394312974,1763440239145,-500.0,0.00038339,2]
[394312975,1763440239155,-500.0,0.00038339,2]
[394312976,1763440239164,-500.0,0.00038339,2]
[394312977,1763440239173,-500.0,0.00038339,2]
[394312978,1763440239183,-500.0,0.00038339,2]
[394312979,1763440239193,-500.0,0.00038339,2]
[394312980,1763440239202,-373.05739785,0.00038339,2]
[394312982,1763440239212,-507.26872482,0.00038339,14]
[394312983,1763440239222,-929.03,0.00038339,3]
[394312984,1763440239232,-929.03,0.00038339,3]
[394312985,1763440239241,-929.03,0.00038339,3]
[394312986,1763440239250,-929.03,0.00038339,3]
[394312987,1763440239259,-929.03,0.00038339,3]
[394312988,1763440239269,-929.03,0.00038339,3]
[394312989,1763440239278,-929.03,0.00038339,3]
[394312990,1763440239288,-929.03,0.00038339,3]
[394312991,1763440239299,-929.03,0.00038339,3]
[394312992,1763440239309,-929.03,0.00038339,3]
[394312994,1763440239318,-929.03,0.00038339,3]
[394312995,1763440239329,-929.03,0.00038339,3]
[394312996,1763440239338,-929.03,0.00038339,3]
[394312997,1763440239347,-929.03,0.00038339,3]
[394312998,1763440239357,-929.03,0.00038339,3]
[394312999,1763440239366,-929.03,0.00038339,3]
[394313001,1763440239376,-929.03,0.00038339,3]
[394313002,1763440239386,-929.03,0.00038339,3]
[394313003,1763440239399,-929.03,0.00038339,3]
[394313004,1763440239409,-929.03,0.00038339,3]
[394313005,1763440239419,-929.03,0.00038339,3]
[394313006,1763440239428,-929.03,0.00038339,3]
[394313007,1763440239438,-929.03,0.00038339,3]
[394313008,1763440239448,-929.23856138,0.00038339,3]
[394313010,1763440239458,-500.0,0.00038339,7]
[394313011,1763440239468,-500.0,0.00038339,7]
[394313012,1763440239479,-500.0,0.00038339,7]
[394313013,1763440239488,-500.0,0.00038339,7]
[394313014,1763440239498,-500.0,0.00038339,7]
[394313015,1763440239507,-500.0,0.00038339,7]
[394313016,1763440239517,-500.0,0.00038339,7]
[394313017,1763440239526,-500.0,0.00038339,7]
[394313018,1763440239535,-500.0,0.00038339,7]
[394313019,1763440239545,-520.40727017,0.00038339,7]
[394313020,1763440239555,-502.03636889,0.00038339,7]
[394313021,1763440239564,-500.0,0.00038339,7]
[394313022,1763440239575,-500.0,0.00038339,7]
[394313023,1763440239584,-500.0,0.00038339,7]
[394313024,1763440239594,-500.0,0.00038339,7]
[394313025,1763440239604,-500.0,0.00038339,7]
[394313026,1763440239614,-500.0,0.00038339,7]
[394313027,1763440239624,-500.0,0.00038339,7]